bitfinex/quotes_BTCUSD_20251007
["timestamp","ask_amount","ask_price","bid_price","bid_amount"]
[1759844131665,0.00189746,124660.0,124650.0,0.83352206]
[1759844132064,0.00289746,124660.0,124650.0,0.08312206]
[1759844132299,0.00289746,124660.0,124650.0,1.06348206]
[1759844132530,0.00289746,124660.0,124650.0,2.45840806]
[1759844132734,0.00189746,124660.0,124650.0,2.45840806]
[1759844133142,0.00189746,124660.0,124650.0,2.46914392]
[1759844133474,0.00189746,124660.0,124650.0,2.46910392]
[1759844133679,0.00089746,124660.0,124650.0,2.46910392]
[1759844133897,0.00089746,124660.0,124650.0,2.47010392]
[1759844134090,0.00089746,124660.0,124650.0,1.24471292]
[1759844134302,0.00089746,124660.0,124650.0,1.66155292]
[1759844134692,0.00089746,124660.0,124650.0,2.00155292]
[1759844134894,0.00089746,124660.0,124650.0,2.00955292]
[1759844135116,0.00089746,124660.0,124650.0,2.03970482]
[1759844135534,0.00089746,124660.0,124650.0,2.13970482]
[1759844135729,0.00089746,124660.0,124650.0,2.16470482]
[1759844135967,0.00089746,124660.0,124650.0,2.16370482]
[1759844136181,0.06536749,124700.0,124670.0,0.0301519]
[1759844136395,0.06536749,124700.0,124690.0,0.42336]
[1759844136622,0.06536749,124700.0,124690.0,1.81804806]
[1759844136979,0.06536749,124700.0,124690.0,1.58612417]
[1759844137192,0.06536749,124700.0,124690.0,0.42288017]
[1759844137388,0.24199241,124700.0,124680.0,0.008]
[1759844137599,0.27948241,124700.0,124690.0,0.9804]
[1759844137769,0.16039778,124690.0,124680.0,0.42456206]
[1759844137978,0.23847778,124690.0,124670.0,0.00014943]
[1759844138186,0.16041065,124680.0,124670.0,0.33358943]
[1759844138392,0.17704065,124680.0,124670.0,0.00014943]
[1759844138795,0.17704065,124680.0,124670.0,0.77922943]
[1759844138998,0.17704065,124680.0,124670.0,0.75038943]
[1759844139208,0.17704065,124680.0,124670.0,0.64702943]
[1759844139428,0.18304065,124680.0,124670.0,0.64702943]
[1759844139633,0.17704065,124680.0,124670.0,0.64702943]
[1759844140004,0.008,124680.0,124670.0,0.64702943]
[1759844140205,0.008,124680.0,124670.0,1.07015149]
[1759844140429,0.00918792,124680.0,124670.0,2.01106349]
[1759844140764,0.00918792,124680.0,124670.0,1.65323949]
[1759844140960,0.00918792,124680.0,124670.0,1.56983949]
[1759844141178,0.00918792,124680.0,124670.0,1.65315949]
[1759844141406,0.01118792,124680.0,124670.0,1.65315949]
[1759844142035,0.00318792,124680.0,124670.0,1.65315949]
[1759844142366,0.01218792,124680.0,124670.0,1.65315949]
[1759844143154,0.01018792,124680.0,124670.0,1.65315949]
[1759844143418,0.16040048,124690.0,124670.0,1.23631949]
[1759844143651,0.16040048,124690.0,124670.0,1.40339149]
[1759844144124,0.17703048,124690.0,124670.0,1.40339149]
[1759844144975,0.16040048,124690.0,124670.0,1.40339149]
[1759844145263,0.17703048,124690.0,124680.0,0.56336]
[1759844145483,0.17703048,124690.0,124680.0,0.98008]
[1759844145723,0.16940048,124690.0,124680.0,0.98008]
[1759844145927,0.16959571,124690.0,124680.0,0.98008]
[1759844146144,0.18622571,124690.0,124680.0,0.98008]
[1759844146350,0.18822571,124690.0,124680.0,0.98008]
[1759844146639,0.17922571,124690.0,124680.0,0.98008]
[1759844146895,0.01319793,124690.0,124680.0,0.98008]
[1759844147112,0.01319793,124690.0,124680.0,1.06320206]
[1759844147758,0.01319793,124690.0,124680.0,1.54400206]
[1759844148646,0.00219793,124690.0,124680.0,0.56392206]
[1759844148869,0.00219793,124690.0,124680.0,1.54392206]
[1759844149053,0.00619793,124690.0,124680.0,1.54392206]
[1759844149258,0.00419793,124690.0,124680.0,1.54392206]
[1759844150268,0.00419793,124690.0,124680.0,1.54492206]
[1759844153141,0.00419793,124690.0,124680.0,0.56492206]
[1759844153606,0.00419793,124690.0,124680.0,1.54476206]
[1759844156022,0.20812037,124720.0,124690.0,0.34]
[1759844156245,0.16267303,124720.0,124710.0,0.08332]
[1759844156720,0.16035988,124720.0,124710.0,0.0993572]
[1759844157169,0.1603592,124720.0,124710.0,0.0993572]
[1759844157377,0.1603592,124720.0,124710.0,0.08346943]
[1759844158044,0.1759292,124720.0,124710.0,0.08346943]
[1759844158264,0.1623592,124720.0,124710.0,0.08346943]
[1759844158477,0.1603592,124720.0,124710.0,0.08346943]
[1759844158671,0.16840826,124730.0,124710.0,0.08346943]
[1759844158841,0.16840826,124730.0,124720.0,0.2298]
[1759844159073,0.21209826,124730.0,124720.0,0.2298]
[1759844159434,0.1603592,124720.0,124710.0,0.00014943]
[1759844159648,0.1603592,124720.0,124710.0,0.64650943]
[1759844159907,0.1759292,124720.0,124710.0,0.64650943]
[1759844160310,0.1759292,124720.0,124710.0,0.00014943]
[1759844160577,0.2163592,124720.0,124710.0,0.00014943]
[1759844160768,0.2399792,124720.0,124710.0,0.33346943]
[1759844160972,1.13569797,124720.0,124710.0,0.00014943]
[1759844161444,1.21882003,124720.0,124710.0,0.43918943]
[1759844161654,1.58897193,124720.0,124710.0,0.00014943]
[1759844161864,1.62110678,124720.0,124710.0,0.00014943]
[1759844162087,1.05611655,124690.0,124680.0,0.33385475]
[1759844162326,1.10461655,124690.0,124680.0,0.0006144]
[1759844162510,1.13273655,124690.0,124680.0,0.6471744]
[1759844162675,0.23701778,124690.0,124680.0,0.6471744]
[1759844162916,0.23701778,124690.0,124680.0,0.2304944]
[1759844163075,1.13273655,124690.0,124680.0,0.3138144]
[1759844163272,1.14993114,124690.0,124680.0,0.3138144]
[1759844163486,1.13273655,124690.0,124680.0,0.3138144]
[1759844163692,1.13673655,124690.0,124680.0,0.3138144]
[1759844164118,0.24101778,124690.0,124680.0,0.3138144]
[1759844164614,0.17996778,124690.0,124680.0,0.3138144]
[1759844165055,0.21739778,124690.0,124680.0,0.3138144]
[1759844165281,1.13673655,124690.0,124680.0,0.0006144]
[1759844165537,1.66600731,124690.0,124680.0,0.0839344]
[1759844165758,1.7001122,124690.0,124680.0,0.0006144]
[1759844165962,1.7001122,124690.0,124680.0,0.0016144]
[1759844166391,1.72160855,124690.0,124680.0,0.0839344]
[1759844166591,1.72060855,124690.0,124680.0,0.3139744]
[1759844166825,1.72260855,124690.0,124680.0,0.3139744]
[1759844167035,0.82688978,124690.0,124680.0,0.3139744]
[1759844167243,1.72260855,124690.0,124680.0,0.3139744]
[1759844168091,1.7300596,124690.0,124680.0,0.3139744]
[1759844168695,1.7330596,124690.0,124680.0,0.3149744]
[1759844168807,0.75734403,124690.0,124680.0,0.3149744]
[1759844169024,1.63656645,124690.0,124680.0,0.0016144]
[1759844169381,1.60641455,124690.0,124680.0,0.3148944]
[1759844170439,1.67590164,124690.0,124680.0,0.3148944]
[1759844170876,0.67859089,124690.0,124680.0,0.3148944]
[1759844171312,1.60446156,124690.0,124680.0,0.0016144]
[1759844171648,0.70874279,124690.0,124680.0,0.6482944]
[1759844171811,0.67859089,124690.0,124680.0,0.6482944]
[1759844172800,0.67858197,124690.0,124680.0,0.6482944]
[1759844173417,1.57430074,124690.0,124680.0,0.6482944]
[1759844174678,0.67858197,124690.0,124680.0,0.6482944]
[1759844174884,0.25545991,124690.0,124680.0,0.6482944]
[1759844176236,0.011,124690.0,124680.0,0.6482944]
[1759844176662,0.17139778,124690.0,124680.0,0.6482944]
[1759844176929,0.17139778,124690.0,124680.0,0.6482544]
[1759844177135,0.18696778,124690.0,124680.0,0.6482544]
[1759844177340,0.18696778,124690.0,124680.0,0.5649344]
[1759844177539,0.18696778,124690.0,124680.0,0.6472544]
[1759844177810,0.20848778,124690.0,124680.0,0.6472144]
[1759844178146,0.20448778,124690.0,124680.0,0.0006144]
[1759844178377,0.20448778,124690.0,124680.0,0.6472144]
[1759844178595,0.17596778,124690.0,124680.0,0.6502144]
[1759844178829,0.17696778,124690.0,124680.0,0.6502144]
[1759844179283,0.19529778,124690.0,124680.0,0.6502144]
[1759844179661,0.001,124690.0,124680.0,0.6502144]
[1759844179891,0.001,124690.0,124680.0,0.73333646]
[1759844180097,0.001,124690.0,124680.0,0.92315646]
[1759844180308,0.01752,124690.0,124680.0,0.08673646]
[1759844180476,0.04511,124690.0,124680.0,1.06673646]
[1759844180678,0.01752,124690.0,124680.0,1.06673646]
[1759844180894,0.01752,124690.0,124680.0,0.08673646]
[1759844181101,0.17791778,124690.0,124680.0,0.0036144]
[1759844181315,0.20550778,124690.0,124680.0,0.6502144]
[1759844181784,0.17791778,124690.0,124680.0,0.6502144]
[1759844182017,0.17791778,124690.0,124680.0,0.0036144]
[1759844182238,0.01752,124690.0,124680.0,0.6501744]
[1759844182456,0.001,124690.0,124680.0,2.06635146]
[1759844182662,0.001,124690.0,124680.0,1.36671046]
[1759844183410,0.001,124690.0,124680.0,0.08673646]
[1759844183646,0.01752,124690.0,124680.0,0.8497344]
[1759844183859,0.01752,124690.0,124680.0,0.9003344]
[1759844184058,0.17791778,124690.0,124680.0,0.9837344]
[1759844184463,0.01752,124690.0,124680.0,0.9837344]
[1759844184664,0.17791778,124690.0,124680.0,0.0036144]
[1759844184889,0.01752,124690.0,124680.0,0.7800944]
[1759844185297,0.001,124690.0,124680.0,0.7800944]
[1759844185503,0.001,124690.0,124680.0,2.01953746]
[1759844185704,0.001,124690.0,124680.0,2.59814246]
[1759844187271,0.0001979,124700.0,124690.0,0.34]
[1759844187481,0.23903778,124690.0,124680.0,0.5680944]
[1759844187695,0.23903778,124690.0,124680.0,0.4212944]
[1759844187903,0.23903778,124690.0,124680.0,0.6520544]
[1759844188131,0.23903778,124690.0,124680.0,0.0006144]
[1759844188345,1.21787861,124690.0,124680.0,0.6500544]
[1759844188576,0.19056255,124680.0,124670.0,0.33336]
[1759844188806,1.18592338,124680.0,124670.0,0.31416959]
[1759844189024,1.24804338,124680.0,124670.0,4.959e-05]
[1759844189474,0.16044925,124650.0,124640.0,0.33336]
[1759844189694,1.05857117,124650.0,124640.0,0.41968]
[1759844189921,0.23923836,124650.0,124640.0,0.41968]
[1759844190147,1.13495713,124650.0,124640.0,0.41968]
[1759844191340,0.23923836,124650.0,124640.0,0.41968]
[1759844192128,1.14595713,124650.0,124640.0,0.42068]
[1759844193153,0.16048788,124620.0,124610.0,0.3334]
[1759844193510,1.13710069,124620.0,124610.0,0.64748]
[1759844193727,1.13484665,124620.0,124610.0,0.64748]
[1759844194422,1.13584665,124620.0,124610.0,0.64748]
[1759844194643,1.55896871,124620.0,124610.0,0.64748]
[1759844194882,1.55896871,124620.0,124610.0,0.64886645]
[1759844195113,1.56196871,124620.0,124610.0,0.64886645]
[1759844195373,0.16055229,124570.0,124560.0,0.33344]
[1759844195608,1.05627106,124570.0,124560.0,0.4168]
[1759844195853,1.05627106,124570.0,124560.0,0.64776]
[1759844195854,1.13491106,124570.0,124560.0,0.64776]
[1759844196315,0.23919229,124570.0,124560.0,0.64776]
[1759844196556,0.00940894,124570.0,124560.0,0.64776]
[1759844196796,0.00014894,124570.0,124560.0,0.64776]
[1759844197925,0.05825894,124570.0,124560.0,0.64876]
[1759844198145,0.20048123,124570.0,124560.0,0.64876]
[1759844198371,1.12363,124570.0,124560.0,0.64776]
[1759844198593,0.96407771,124570.0,124560.0,0.64776]
[1759844199055,1.1337,124570.0,124560.0,0.64776]
[1759844199636,0.23798123,124570.0,124560.0,0.64776]
[1759844200492,0.05434894,124570.0,124560.0,0.64776]
[1759844200654,1.13595404,124570.0,124560.0,0.64776]
[1759844200856,1.1337,124570.0,124560.0,0.64776]
[1759844201073,1.1337,124570.0,124560.0,0.648751]
[1759844201488,1.21682206,124570.0,124560.0,0.648751]
[1759844201820,1.55682206,124570.0,124560.0,0.648751]
[1759844202263,1.58597396,124570.0,124560.0,0.648751]
[1759844202927,1.58997396,124570.0,124560.0,0.648751]
[1759844203137,1.58597396,124570.0,124560.0,0.648751]
[1759844203606,1.58897396,124570.0,124560.0,0.649751]
[1759844203950,1.58597396,124570.0,124560.0,0.648751]
[1759844204356,1.58997396,124570.0,124560.0,0.649751]
[1759844204551,1.67597076,124570.0,124560.0,0.001991]
[1759844204763,1.59597396,124570.0,124560.0,0.003991]
[1759844204971,0.16863956,124530.0,124480.0,0.40535274]
[1759844205166,0.03217,124560.0,124510.0,0.0834]
[1759844205371,0.01134404,124560.0,124520.0,1.349323]
[1759844205584,0.17993778,124560.0,124530.0,0.08312206]
[1759844205831,0.17768374,124560.0,124540.0,0.417]
[1759844206238,0.22838268,124560.0,124550.0,0.23108]
[1759844206445,1.14005145,124560.0,124550.0,0.23108]
[1759844207095,1.14105145,124560.0,124550.0,0.23108]
[1759844207469,0.23730412,124560.0,124550.0,0.23108]
[1759844207669,0.23630412,124560.0,124550.0,0.23108]
[1759844208058,0.23930412,124560.0,124550.0,0.23208]
[1759844208446,0.24330412,124560.0,124550.0,0.23208]
[1759844209045,0.00714894,124560.0,124550.0,0.23208]
[1759844209248,0.00714894,124560.0,124550.0,0.31520206]
[1759844209765,0.00714894,124560.0,124550.0,1.64328306]
[1759844209966,0.00714894,124560.0,124550.0,0.64884206]
[1759844210198,0.00714894,124560.0,124550.0,1.06592206]
[1759844210408,0.00414894,124560.0,124550.0,1.06492206]
[1759844210669,0.00414894,124560.0,124550.0,1.06692206]
[1759844210967,0.00014894,124560.0,124550.0,1.17829206]
[1759844211137,0.00014894,124560.0,124550.0,1.21807006]
[1759844211332,0.00014894,124560.0,124550.0,1.21407006]
[1759844211537,0.00014894,124560.0,124550.0,1.21507006]
[1759844211736,0.00014894,124560.0,124550.0,1.21707006]
[1759844213032,0.00014894,124560.0,124550.0,1.20151606]
[1759844214087,0.00014894,124560.0,124550.0,1.27694506]
[1759844214682,0.00014894,124560.0,124550.0,1.61694506]
[1759844215814,0.00014894,124560.0,124550.0,0.63526331]
[1759844215998,0.00014894,124560.0,124550.0,1.61698331]
[1759844216224,0.00014894,124560.0,124550.0,1.19990331]
[1759844216418,0.00014894,124560.0,124550.0,1.61698331]
[1759844217784,0.00014894,124560.0,124550.0,1.65513521]
[1759844218044,0.00014894,124560.0,124550.0,0.67341521]
[1759844218255,0.12922425,124600.0,124560.0,0.34]
[1759844218471,0.06536749,124590.0,124570.0,0.72862806]
[1759844218680,0.06536749,124590.0,124570.0,0.08312206]
[1759844218681,0.22589438,124590.0,124570.0,0.08312206]
[1759844218888,0.26394438,124590.0,124580.0,0.98164]
[1759844219093,0.27959438,124590.0,124580.0,1.06476206]
[1759844219550,0.27959438,124590.0,124580.0,0.08312206]
[1759844219764,0.21422689,124590.0,124580.0,0.73100206]
[1759844219962,0.16051929,124600.0,124580.0,0.73100206]
[1759844220397,0.16856789,124580.0,124570.0,0.33364]
[1759844220556,0.24538789,124580.0,124570.0,0.9816]
[1759844221257,0.24538789,124580.0,124550.0,0.008]
[1759844221258,0.16055272,124570.0,124550.0,0.008]
[1759844221572,0.22172272,124570.0,124560.0,0.41704]
[1759844221739,0.16056518,124560.0,124550.0,0.08312206]
[1759844221914,0.21426518,124560.0,124550.0,0.49292]
[1759844222118,0.17621518,124560.0,124550.0,0.49292]
[1759844222387,0.16858033,124570.0,124550.0,0.57604206]
[1759844222628,0.16056518,124560.0,124550.0,0.49564206]
[1759844222847,0.23738518,124560.0,124550.0,0.00349746]
[1759844223050,0.23738518,124560.0,124550.0,0.00049746]
[1759844223467,0.23738518,124560.0,124550.0,0.42145746]
[1759844223921,0.23738518,124560.0,124550.0,0.00049746]
[1759844224131,0.23738518,124560.0,124550.0,0.64845746]
[1759844224351,0.23738518,124560.0,124550.0,0.00049746]
[1759844224564,0.24038518,124560.0,124550.0,0.6491911]
[1759844225009,0.23938518,124560.0,124550.0,0.6491911]
[1759844225531,0.24238518,124560.0,124550.0,0.6491911]
[1759844225944,0.24038518,124560.0,124550.0,0.6491911]
[1759844226352,0.24338518,124560.0,124550.0,0.6491911]
[1759844228759,1.06541807,124560.0,124550.0,0.0012311]
[1759844228992,0.98542127,124560.0,124550.0,0.3153911]
[1759844229612,0.32650724,124560.0,124550.0,0.3153911]
[1759844229827,0.98542127,124560.0,124550.0,0.0012311]
[1759844230022,0.35857406,124560.0,124550.0,0.3153911]
[1759844230232,1.01748809,124560.0,124550.0,0.3153911]
[1759844230656,1.35748809,124560.0,124550.0,0.3153911]
[1759844231302,0.69857406,124560.0,124550.0,0.3153911]
[1759844231503,1.35748809,124560.0,124550.0,0.3153911]
[1759844232484,0.69857406,124560.0,124550.0,0.3153911]
[1759844232625,1.35748809,124560.0,124550.0,0.3153911]
[1759844236283,2.09639892,124560.0,124550.0,0.3151911]
[1759844236489,1.35748809,124560.0,124550.0,0.3151911]
[1759844236889,2.04655402,124560.0,124550.0,0.0012311]
[1759844237104,2.04655402,124560.0,124550.0,0.0884711]
[1759844237314,2.04355402,124560.0,124550.0,0.0884711]
[1759844237562,2.04655402,124560.0,124550.0,0.0894711]
[1759844237846,0.50059097,124540.0,124530.0,0.33376]
[1759844238064,1.25750854,124540.0,124530.0,0.41734894]
[1759844238276,1.31944706,124540.0,124530.0,0.41734894]
[1759844238462,0.66053303,124540.0,124530.0,0.41734894]
[1759844238696,1.31944706,124540.0,124530.0,0.41734894]
[1759844238900,1.32344706,124540.0,124530.0,0.64794894]
[1759844239268,1.32644706,124540.0,124530.0,0.64894894]
[1759844240067,1.37459706,124540.0,124530.0,0.64894894]
[1759844240616,1.32644706,124540.0,124530.0,0.64894894]
[1759844240824,1.37146813,124540.0,124530.0,0.31514894]
[1759844243503,0.58441097,124540.0,124530.0,0.31554553]
[1759844245752,0.18324097,124540.0,124530.0,0.00154553]
[1759844245970,0.24527097,124540.0,124530.0,0.64922553]
[1759844246192,0.24527097,124540.0,124530.0,0.00154553]
[1759844246413,0.24527097,124540.0,124530.0,0.42826553]
[1759844247549,0.24527097,124540.0,124530.0,0.64926553]
[1759844248006,0.24527097,124540.0,124530.0,0.00154553]
[1759844248197,0.24527097,124540.0,124530.0,0.64918553]
[1759844248404,0.24504097,124540.0,124530.0,0.64918553]
[1759844250188,0.24504097,124540.0,124530.0,0.56570553]
[1759844250409,0.24504097,124540.0,124530.0,0.64914553]
[1759844250858,0.24504097,124540.0,124530.0,0.00154553]
[1759844251087,0.903955,124540.0,124530.0,0.00154553]
[1759844251543,0.98707706,124540.0,124530.0,0.43202553]
[1759844251982,1.06707386,124540.0,124530.0,0.43202553]
[1759844252211,0.98707706,124540.0,124530.0,0.43202553]
[1759844254065,0.32816303,124540.0,124530.0,0.43202553]
[1759844254256,0.98707706,124540.0,124530.0,0.43202553]
[1759844254460,0.32816303,124540.0,124530.0,0.43202553]
[1759844254610,0.98707706,124540.0,124530.0,0.43202553]
[1759844257006,0.98707706,124540.0,124530.0,0.31522553]
[1759844257409,0.32816303,124540.0,124530.0,0.31522553]
[1759844257612,0.98707706,124540.0,124530.0,0.00154553]
[1759844257765,0.98707706,124540.0,124530.0,0.08658553]
[1759844258404,0.98707706,124540.0,124530.0,0.31522553]
[1759844259063,0.32816303,124540.0,124530.0,0.31522553]
[1759844259386,0.24504097,124540.0,124530.0,0.31522553]
[1759844263211,0.24504097,124540.0,124530.0,0.00154553]
[1759844263404,0.24504097,124540.0,124530.0,0.42042553]
[1759844268594,0.007,124540.0,124530.0,0.42042553]
[1759844269280,0.18336097,124540.0,124530.0,0.42042553]
[1759844269478,0.19254097,124540.0,124530.0,0.00154553]
[1759844269798,0.20253097,124540.0,124530.0,0.64874553]
[1759844270207,0.19254097,124540.0,124530.0,0.00154553]
[1759844270386,0.19254097,124540.0,124530.0,0.64874553]
[1759844270769,0.22642097,124540.0,124530.0,0.64874553]
[1759844271010,0.20235097,124540.0,124530.0,0.64874553]
[1759844271624,0.22642097,124540.0,124530.0,0.00154553]
[1759844271822,0.24527097,124540.0,124530.0,0.64870553]
[1759844272037,0.904185,124540.0,124530.0,0.00154553]
[1759844272250,0.904185,124540.0,124530.0,0.41878553]
[1759844272453,1.40730386,124540.0,124530.0,0.43094553]
[1759844272653,1.40730386,124540.0,124530.0,0.31490553]
[1759844273083,1.32730706,124540.0,124530.0,0.31490553]
[1759844274281,1.32730706,124540.0,124530.0,0.31486553]
[1759844275244,1.56703558,124540.0,124530.0,0.31486553]
[1759844278666,0.66839303,124540.0,124530.0,0.31486553]
[1759844279083,0.58527097,124540.0,124530.0,0.00154553]
[1759844279293,0.58527097,124540.0,124530.0,0.64854553]
[1759844280629,0.66839303,124540.0,124530.0,0.64850553]
[1759844281632,0.22120097,124540.0,124530.0,0.64850553]
[1759844282662,0.24527097,124540.0,124530.0,0.64850553]
[1759844284080,0.24527097,124540.0,124530.0,0.64858553]
[1759844284264,0.24527097,124540.0,124530.0,0.00154553]
[1759844284484,0.24527097,124540.0,124530.0,0.64850553]
[1759844284692,0.24527097,124540.0,124530.0,0.56506553]
[1759844284894,0.24527097,124540.0,124530.0,0.64850553]
[1759844285088,0.24527097,124540.0,124530.0,0.23122553]
[1759844285306,1.59718748,124540.0,124530.0,0.08498553]
[1759844285504,1.59718748,124540.0,124530.0,0.31470553]
[1759844285505,1.64579216,124540.0,124530.0,0.31470553]
[1759844285723,1.64579216,124540.0,124530.0,0.00154553]
[1759844285960,1.64579216,124540.0,124530.0,0.31470553]
[1759844286145,1.64579216,124540.0,124530.0,0.00154553]
[1759844286424,0.50061676,124520.0,124510.0,0.3338]
[1759844286659,0.50061676,124520.0,124480.0,0.3338]
[1759844286660,0.16065547,124490.0,124480.0,0.3338]
[1759844286879,0.16065547,124490.0,124470.0,0.0002]
[1759844286880,0.16066838,124480.0,124470.0,0.0002]
[1759844287111,0.18932838,124480.0,124470.0,0.64728]
[1759844287349,0.20442838,124480.0,124470.0,0.64728]
[1759844287574,0.23774838,124480.0,124470.0,0.64728]
[1759844288104,0.23789761,124480.0,124470.0,0.64728]
[1759844288361,0.23889761,124480.0,124470.0,0.64828]
[1759844289292,0.23889761,124480.0,124470.0,0.64728]
[1759844289743,0.23789761,124480.0,124470.0,0.64728]
[1759844290185,0.23989761,124480.0,124470.0,0.64828]
[1759844290597,0.23989761,124480.0,124470.0,0.65028]
[1759844291194,0.23989761,124480.0,124470.0,0.0032]
[1759844291410,0.23989761,124480.0,124470.0,0.452]
[1759844292216,0.23989761,124480.0,124470.0,0.0032]
[1759844292420,1.13854016,124480.0,124470.0,0.08783044]
[1759844292619,1.56166222,124480.0,124470.0,0.11163044]
[1759844293668,1.56166222,124480.0,124470.0,0.00439044]
[1759844293896,1.56166222,124480.0,124470.0,0.31751044]
[1759844294789,1.55966222,124480.0,124470.0,0.31651044]
[1759844295035,1.55966222,124480.0,124470.0,0.31451044]
[1759844295266,1.64165902,124480.0,124470.0,0.31451044]
[1759844295431,1.67181092,124480.0,124470.0,0.31451044]
[1759844296079,1.67581092,124480.0,124470.0,0.31551044]
[1759844296770,1.59581412,124480.0,124470.0,0.31551044]
[1759844297310,0.69717157,124480.0,124470.0,0.31551044]
[1759844297539,1.59581412,124480.0,124470.0,0.31551044]
[1759844298323,0.69717157,124480.0,124470.0,0.31551044]
[1759844298507,1.59581412,124480.0,124470.0,0.31551044]
[1759844299406,1.67581092,124480.0,124470.0,0.00239044]
[1759844299755,1.67581092,124480.0,124470.0,0.09911044]
[1759844301796,0.66701967,124480.0,124470.0,0.09911044]
[1759844302186,1.56566222,124480.0,124470.0,0.09911044]
[1759844302391,1.59581412,124480.0,124470.0,0.31559044]
[1759844302818,0.53067021,124470.0,124460.0,0.01098181]
[1759844303037,1.53142585,124470.0,124460.0,0.10530181]
[1759844303285,0.16070711,124450.0,124440.0,7e-05]
[1759844303493,0.16070711,124450.0,124440.0,0.08355]
[1759844303494,1.14472576,124450.0,124440.0,0.08355]
[1759844303698,1.21945172,124450.0,124440.0,0.31331]
[1759844304110,1.29944852,124450.0,124440.0,0.31331]
[1759844305119,1.34759852,124450.0,124440.0,0.31331]
[1759844305341,1.30144852,124450.0,124440.0,0.22979]
[1759844305553,1.67160042,124450.0,124440.0,7e-05]
[1759844305788,1.67460042,124450.0,124440.0,0.31427]
[1759844306507,0.79078742,124450.0,124440.0,0.31427]
[1759844306756,1.69844631,124450.0,124440.0,0.31427]
[1759844307017,0.16072002,124440.0,124430.0,0.0002]
[1759844307261,0.50074586,124420.0,124410.0,0.434]
[1759844307501,0.53091068,124410.0,124400.0,0.08388]
[1759844307729,1.57991529,124410.0,124400.0,0.23036]
[1759844307955,1.66965209,124410.0,124400.0,0.31384]
[1759844308185,0.69106244,124410.0,124400.0,0.31384]
[1759844308439,1.60452293,124410.0,124400.0,0.31384]
[1759844309377,1.60652293,124410.0,124400.0,0.31384]
[1759844309814,0.70788038,124410.0,124400.0,0.31622996]
[1759844310024,0.71088038,124410.0,124400.0,0.31622996]
[1759844310255,1.60952293,124410.0,124400.0,0.31622996]
[1759844310668,1.64453629,124410.0,124400.0,0.31622996]
[1759844310873,0.74589374,124410.0,124400.0,0.31622996]
[1759844311090,0.68072848,124410.0,124400.0,0.31622996]
[1759844311507,0.25760642,124410.0,124400.0,0.31622996]
[1759844311715,0.24278848,124410.0,124400.0,0.31622996]
[1759844312590,0.19057848,124410.0,124400.0,0.31622996]
[1759844312834,0.19057848,124410.0,124400.0,0.23278996]
[1759844312835,0.24278848,124410.0,124400.0,0.23278996]
[1759844313045,0.24278848,124410.0,124400.0,0.65038996]
[1759844313046,1.28983742,124410.0,124400.0,0.65038996]
[1759844313254,1.25968552,124410.0,124400.0,0.65038996]
[1759844313482,0.36104297,124410.0,124400.0,0.65038996]
[1759844313699,1.25968552,124410.0,124400.0,0.00278996]
[1759844313885,0.36104297,124410.0,124400.0,0.31634996]
[1759844315724,1.62983742,124410.0,124400.0,0.08630996]
[1759844315844,1.6446459,124410.0,124400.0,0.31630996]
[1759844316085,0.74600335,124410.0,124400.0,0.31630996]
[1759844316304,1.6446459,124410.0,124400.0,0.31630996]
[1759844316906,1.6446459,124410.0,124400.0,0.32630996]
[1759844317761,1.6446459,124410.0,124400.0,0.32634996]
[1759844318174,1.66170692,124410.0,124400.0,0.32634996]
[1759844318380,1.66170692,124410.0,124400.0,0.01278996]
[1759844318591,0.5007717,124400.0,124390.0,0.0002]
[1759844318818,0.16081048,124370.0,124360.0,0.33412]
[1759844318998,0.27657998,124370.0,124360.0,0.5062]
[1759844319185,0.3371472,124370.0,124360.0,0.5062]
[1759844319352,0.32234254,124370.0,124360.0,0.5062]
[1759844319548,1.25113699,124370.0,124360.0,0.5062]
[1759844319997,1.25218667,124370.0,124360.0,0.5062]
[1759844320396,0.35354412,124370.0,124360.0,0.5062]
[1759844321104,0.16082341,124360.0,124350.0,0.01058181]
[1759844321313,1.4409319,124360.0,124350.0,0.01058181]
[1759844321540,1.67114672,124360.0,124350.0,0.10542181]
[1759844321782,0.77250417,124360.0,124350.0,0.10542181]
[1759844322235,0.66235547,124360.0,124350.0,0.10542181]
[1759844322502,0.66235547,124360.0,124350.0,0.32414181]
[1759844322717,0.66235547,124360.0,124350.0,0.32714181]
[1759844322918,0.23923341,124360.0,124350.0,0.32714181]
[1759844323535,0.32235547,124360.0,124350.0,0.01358181]
[1759844323730,0.43250417,124360.0,124350.0,0.66146181]
[1759844323924,0.43250417,124360.0,124350.0,0.09710181]
[1759844324126,0.43550417,124360.0,124350.0,0.32830181]
[1759844324329,0.77550417,124360.0,124350.0,0.32830181]
[1759844324493,0.77550417,124360.0,124350.0,0.32929532]
[1759844324850,0.74535227,124360.0,124350.0,0.32929532]
[1759844325067,0.77550417,124360.0,124350.0,0.01557532]
[1759844325225,0.77550417,124360.0,124350.0,0.09909532]
[1759844325434,0.77550417,124360.0,124350.0,0.11237532]
[1759844325897,1.67414672,124360.0,124350.0,0.11237532]
[1759844326043,1.67414672,124360.0,124350.0,1e-08]
[1759844326044,1.71392632,124360.0,124350.0,1e-08]
[1759844326245,0.16083634,124350.0,124340.0,1e-08]
[1759844326480,0.53101412,124330.0,124320.0,0.08356]
[1759844326686,1.6059636,124330.0,124320.0,0.16912]
[1759844326826,0.70732105,124330.0,124320.0,0.16912]
[1759844327243,0.69254618,124330.0,124320.0,0.16912]
[1759844327505,0.70731704,124330.0,124320.0,0.16912]
[1759844327681,0.70746599,124330.0,124320.0,0.16912]
[1759844327890,0.23942117,124330.0,124320.0,0.16912]
[1759844328140,0.23942117,124330.0,124320.0,0.17112]
[1759844328347,0.24042117,124330.0,124320.0,0.17112]
[1759844328566,0.16942619,124320.0,124280.0,0.00840051]
[1759844328830,0.00050105,124320.0,124300.0,0.08356]
[1759844329046,0.16137621,124320.0,124310.0,0.01608881]
[1759844329263,0.00050105,124320.0,124310.0,0.01608881]
[1759844329685,0.00047653,124320.0,124310.0,0.24668881]
[1759844329887,0.00147653,124320.0,124310.0,0.2306]
[1759844330544,0.00247653,124320.0,124310.0,0.2306]
[1759844330758,0.00247653,124320.0,124310.0,0.31372206]
[1759844331181,0.00147653,124320.0,124310.0,1.46221806]
[1759844331339,0.00147653,124320.0,124310.0,1.80521806]
[1759844331543,0.00147653,124320.0,124310.0,1.81221806]
[1759844332129,0.00147653,124320.0,124310.0,1.58161806]
[1759844332329,0.00147653,124320.0,124310.0,2.23009806]
[1759844332780,0.00147653,124320.0,124310.0,2.23089328]
[1759844332934,0.00147653,124320.0,124310.0,1.57541328]
[1759844333134,0.00147653,124320.0,124310.0,2.22385328]
[1759844333341,0.00047653,124320.0,124310.0,2.22085328]
[1759844333705,0.00147653,124320.0,124310.0,2.23285328]
[1759844334041,0.00135297,124320.0,124310.0,2.23285328]
[1759844335157,0.001,124320.0,124310.0,1.58441328]